[Event "*** Titled Tuesday Blitz"]
[Site "Chess.com"]
[Date "2020.04.07"]
[Round "3"]
[White "tomsishere"]
[Black "DejanNestor64"]
[Result "0-1"]
[WhiteElo "2210"]
[BlackElo "2435"]
[TimeControl "180+1"]
[EndTime "13:30:16 PDT"]
[Termination "DejanNestor64 won on time"]

1. d4 {[%clk 0:01:21.2]} 1... Nf6 {[%clk 0:02:58]} 2. c4 {[%clk 0:01:21.5]} 2...
e6 {[%clk 0:02:57.9]} 3. Nc3 {[%clk 0:01:21.9]} 3... Bb4 {[%clk 0:02:57.4]} 4.
Qc2 {[%clk 0:01:22.1]} 4... O-O {[%clk 0:02:52.5]} 5. Nf3 {[%clk 0:01:21.4]}
5... d6 {[%clk 0:02:51.8]} 6. Bd2 {[%clk 0:01:20.8]} 6... Nbd7 {[%clk
0:02:49.1]} 7. a3 {[%clk 0:01:20.8]} 7... Bxc3 {[%clk 0:02:48.7]} 8. Bxc3 {[%clk
0:01:21.7]} 8... Qe7 {[%clk 0:02:48.4]} 9. e3 {[%clk 0:01:21.1]} 9... b6 {[%clk
0:02:47.9]} 10. Be2 {[%clk 0:01:18.2]} 10... Bb7 {[%clk 0:02:48]} 11. O-O {[%clk
0:01:15.4]} 11... Ne4 {[%clk 0:02:47.1]} 12. Nd2 {[%clk 0:01:10.2]} 12... f5
{[%clk 0:02:43.9]} 13. f3 {[%clk 0:01:03]} 13... Nxc3 {[%clk 0:02:36.1]} 14.
Qxc3 {[%clk 0:01:03.9]} 14... e5 {[%clk 0:02:35.8]} 15. d5 {[%clk 0:00:56.1]}
15... a5 {[%clk 0:02:26.1]} 16. b4 {[%clk 0:00:55.4]} 16... c6 {[%clk
0:02:09.5]} 17. e4 {[%clk 0:00:48]} 17... f4 {[%clk 0:02:01.8]} 18. Rab1 {[%clk
0:00:46.4]} 18... axb4 {[%clk 0:01:58.1]} 19. axb4 {[%clk 0:00:45.2]} 19... g5
{[%clk 0:01:44.6]} 20. dxc6 {[%clk 0:00:45.1]} 20... Bxc6 {[%clk 0:01:43.9]} 21.
Rfd1 {[%clk 0:00:45.8]} 21... Rf6 {[%clk 0:01:35.9]} 22. Nf1 {[%clk 0:00:44.7]}
22... Nf8 {[%clk 0:01:34.8]} 23. Rbc1 {[%clk 0:00:42.8]} 23... Ne6 {[%clk
0:01:32.1]} 24. Rd2 {[%clk 0:00:35.3]} 24... Kg7 {[%clk 0:01:29.6]} 25. Rcd1
{[%clk 0:00:35]} 25... Rd8 {[%clk 0:01:28.6]} 26. h3 {[%clk 0:00:32.9]} 26... h5
{[%clk 0:01:27.4]} 27. Nh2 {[%clk 0:00:30.6]} 27... Kh6 {[%clk 0:01:24.2]} 28.
Ra2 {[%clk 0:00:30.4]} 28... Qc7 {[%clk 0:01:09.3]} 29. Qa1 {[%clk 0:00:29.4]}
29... Rf7 {[%clk 0:01:06.5]} 30. Nf1 {[%clk 0:00:28.1]} 30... Nd4 {[%clk
0:01:03.7]} 31. Rxd4 {[%clk 0:00:26.9]} 31... exd4 {[%clk 0:01:03.8]} 32. Qxd4
{[%clk 0:00:27.4]} 32... Re8 {[%clk 0:00:55.9]} 33. Rd2 {[%clk 0:00:26.7]} 33...
Re6 {[%clk 0:00:53.2]} 34. Rd1 {[%clk 0:00:25.5]} 34... Rfe7 {[%clk 0:00:53.2]}
35. Nd2 {[%clk 0:00:25]} 35... Be8 {[%clk 0:00:52.3]} 36. Qh8+ {[%clk 0:00:20]}
36... Rh7 {[%clk 0:00:47]} 37. Qd4 {[%clk 0:00:18.7]} 37... Kg6 {[%clk
0:00:43.7]} 38. Nb1 {[%clk 0:00:18.3]} 38... Bc6 {[%clk 0:00:39.3]} 39. Bd3
{[%clk 0:00:17.5]} 39... Kh6 {[%clk 0:00:37.7]} 40. Nc3 {[%clk 0:00:16.9]} 40...
Qg7 {[%clk 0:00:36.4]} 41. Qxb6 {[%clk 0:00:13]} 41... Qxc3 {[%clk 0:00:35]} 42.
Qxc6 {[%clk 0:00:13.2]} 42... Qxb4 {[%clk 0:00:33.1]} 43. Qd5 {[%clk 0:00:11.7]}
43... Rhe7 {[%clk 0:00:31.3]} 44. h4 {[%clk 0:00:10.9]} 44... Qc5+ {[%clk
0:00:29.7]} 45. Qxc5 {[%clk 0:00:10.5]} 45... dxc5 {[%clk 0:00:29.8]} 46. hxg5+
{[%clk 0:00:10.6]} 46... Kxg5 {[%clk 0:00:29.5]} 47. Be2 {[%clk 0:00:10.2]}
47... Kf6 {[%clk 0:00:27.2]} 48. Kf2 {[%clk 0:00:08.7]} 48... Ra7 {[%clk
0:00:24.9]} 49. Rd5 {[%clk 0:00:07.6]} 49... Ra2 {[%clk 0:00:24]} 50. Rxh5
{[%clk 0:00:06.1]} 50... Kg6 {[%clk 0:00:22.6]} 51. Rf5 {[%clk 0:00:05.9]} 51...
Rb6 {[%clk 0:00:21.8]} 0-1

[Event "*** Titled Tuesday Blitz"]
[Site "Chess.com"]
[Date "2020.04.07"]
[Round "3"]
[White "LuckyTiger"]
[Black "Alliswell998"]
[Result "0-1"]
[WhiteElo "2743"]
[BlackElo "2541"]
[TimeControl "180+1"]
[EndTime "13:30:17 PDT"]
[Termination "Alliswell998 won on time"]

1. e4 {[%clk 0:03:00.9]} 1... c5 {[%clk 0:02:59.1]} 2. c3 {[%clk 0:03:01.4]}
2... d5 {[%clk 0:02:57.8]} 3. exd5 {[%clk 0:03:01.7]} 3... Nf6 {[%clk
0:02:57.4]} 4. d4 {[%clk 0:03:00.7]} 4... Nxd5 {[%clk 0:02:55.3]} 5. Nf3 {[%clk
0:02:59.9]} 5... e6 {[%clk 0:02:55.3]} 6. Bd3 {[%clk 0:02:59]} 6... Nc6 {[%clk
0:02:55.4]} 7. O-O {[%clk 0:02:59.3]} 7... b6 {[%clk 0:02:49.2]} 8. a3 {[%clk
0:02:47.6]} 8... Bb7 {[%clk 0:02:48.4]} 9. Qe2 {[%clk 0:02:09]} 9... Be7 {[%clk
0:02:40.8]} 10. dxc5 {[%clk 0:01:55.1]} 10... Bxc5 {[%clk 0:02:41.7]} 11. b4
{[%clk 0:01:46.3]} 11... Be7 {[%clk 0:02:39.5]} 12. c4 {[%clk 0:01:43.3]} 12...
Nf6 {[%clk 0:02:37.7]} 13. Bb2 {[%clk 0:01:43.2]} 13... O-O {[%clk 0:02:35.8]}
14. Nc3 {[%clk 0:01:43]} 14... a6 {[%clk 0:02:26.3]} 15. Rfe1 {[%clk 0:01:39.9]}
15... Qc7 {[%clk 0:02:24.7]} 16. Rac1 {[%clk 0:01:38.2]} 16... Rac8 {[%clk
0:02:22.6]} 17. Bb1 {[%clk 0:01:18.7]} 17... Rfd8 {[%clk 0:02:14.4]} 18. Ne4
{[%clk 0:01:07.7]} 18... Qf4 {[%clk 0:02:06.3]} 19. g3 {[%clk 0:00:55.8]} 19...
Qg4 {[%clk 0:02:01.3]} 20. h3 {[%clk 0:00:21.8]} 20... Qxh3 {[%clk 0:01:57.3]}
21. Nfg5 {[%clk 0:00:21.9]} 21... Qh6 {[%clk 0:01:47.7]} 22. Nxf7 {[%clk
0:00:16.7]} 22... Kxf7 {[%clk 0:01:31.6]} 23. Nxf6 {[%clk 0:00:16.9]} 23... Nd4
{[%clk 0:01:20]} 24. Qh5+ {[%clk 0:00:17.5]} 24... Qxh5 {[%clk 0:01:13.7]} 25.
Nxh5 {[%clk 0:00:18.4]} 25... Nf3+ {[%clk 0:01:11]} 26. Kf1 {[%clk 0:00:18.9]}
26... Nd2+ {[%clk 0:01:08]} 27. Kg1 {[%clk 0:00:18.5]} 27... Nf3+ {[%clk
0:01:02.9]} 28. Kf1 {[%clk 0:00:18.8]} 28... Nxe1 {[%clk 0:01:03.4]} 29. Kxe1
{[%clk 0:00:19.7]} 29... Bg5 {[%clk 0:00:56.8]} 30. f4 {[%clk 0:00:09.6]} 30...
Be7 {[%clk 0:00:57.2]} 31. Nxg7 {[%clk 0:00:07.3]} 31... Rg8 {[%clk 0:00:54.5]}
32. Bxh7 {[%clk 0:00:04.1]} 32... Rxg7 {[%clk 0:00:54.4]} 33. Bxg7 {[%clk
0:00:05]} 33... Kxg7 {[%clk 0:00:54.7]} 34. Bd3 {[%clk 0:00:05.4]} 34... Rh8
{[%clk 0:00:53.1]} 35. c5 {[%clk 0:00:03.9]} 35... bxc5 {[%clk 0:00:51.2]} 36.
bxc5 {[%clk 0:00:04.5]} 36... Rh1+ {[%clk 0:00:51.3]} 37. Kd2 {[%clk 0:00:05.2]}
37... Rxc1 {[%clk 0:00:51.9]} 38. Kxc1 {[%clk 0:00:06.1]} 38... Bxc5 {[%clk
0:00:52.6]} 39. a4 {[%clk 0:00:07]} 39... Bf2 {[%clk 0:00:50.2]} 40. g4 {[%clk
0:00:06.5]} 40... Be3+ {[%clk 0:00:50.7]} 41. Kc2 {[%clk 0:00:06.5]} 41... Bxf4
{[%clk 0:00:51.6]} 42. Kc3 {[%clk 0:00:05.2]} 42... Kf6 {[%clk 0:00:51.3]} 43.
Kd4 {[%clk 0:00:05.2]} 43... Kg5 {[%clk 0:00:49.9]} 44. Be2 {[%clk 0:00:03.6]}
44... a5 {[%clk 0:00:49.6]} 45. Kc5 {[%clk 0:00:03.1]} 45... e5 {[%clk
0:00:48.6]} 46. Kb6 {[%clk 0:00:02.6]} 46... Bc8 {[%clk 0:00:44.6]} 47. Kxa5
{[%clk 0:00:03]} 47... Bxg4 {[%clk 0:00:45.2]} 48. Bd3 {[%clk 0:00:03.3]} 48...
Bf5 {[%clk 0:00:43.2]} 49. Be2 {[%clk 0:00:03.9]} 49... Bc2 {[%clk 0:00:42.1]}
50. Kb5 {[%clk 0:00:03.1]} 50... Kf5 {[%clk 0:00:37.7]} 51. a5 {[%clk
0:00:02.9]} 51... Be3 {[%clk 0:00:35.6]} 52. a6 {[%clk 0:00:02.2]} 52... Ke4
{[%clk 0:00:36]} 0-1

[Event "*** Titled Tuesday Blitz"]
[Site "Chess.com"]
[Date "2020.04.07"]
[Round "3"]
[White "powermove"]
[Black "Caclox"]
[Result "1/2-1/2"]
[WhiteElo "1458"]
[BlackElo "2490"]
[TimeControl "180+1"]
[EndTime "13:30:17 PDT"]
[Termination "Game drawn by repetition"]

1. e4 {[%clk 0:03:00.9]} 1... c5 {[%clk 0:02:59.5]} 2. Nf3 {[%clk 0:02:57.1]}
2... d6 {[%clk 0:02:59]} 3. d4 {[%clk 0:02:56.7]} 3... cxd4 {[%clk 0:02:59.9]}
4. Nxd4 {[%clk 0:02:56.8]} 4... Nf6 {[%clk 0:03:00.3]} 5. f3 {[%clk 0:02:56.5]}
5... a6 {[%clk 0:02:59.5]} 6. c4 {[%clk 0:02:56.2]} 6... e6 {[%clk 0:02:58.4]}
7. Be2 {[%clk 0:02:54.9]} 7... b6 {[%clk 0:02:58.7]} 8. Nc3 {[%clk 0:02:52.7]}
8... Bb7 {[%clk 0:02:59.1]} 9. Be3 {[%clk 0:02:52.1]} 9... Nbd7 {[%clk
0:02:59.5]} 10. O-O {[%clk 0:02:51.7]} 10... Be7 {[%clk 0:02:59.7]} 11. Rc1
{[%clk 0:02:51.4]} 11... O-O {[%clk 0:02:59.3]} 12. Qd2 {[%clk 0:02:51.3]} 12...
Qc7 {[%clk 0:02:59.6]} 13. b3 {[%clk 0:02:51.2]} 13... Rac8 {[%clk 0:02:59.9]}
14. Rfd1 {[%clk 0:02:50.6]} 14... Qb8 {[%clk 0:03:00.4]} 15. Nc2 {[%clk
0:02:47.6]} 15... Bd8 {[%clk 0:03:00.4]} 16. Bf4 {[%clk 0:02:46.2]} 16... Ne5
{[%clk 0:02:55.2]} 17. Kh1 {[%clk 0:02:07]} 17... Bc7 {[%clk 0:02:49.4]} 18. Bg5
{[%clk 0:01:57.2]} 18... Kh8 {[%clk 0:02:43.2]} 19. Qf4 {[%clk 0:01:46.4]} 19...
Ng6 {[%clk 0:02:40.2]} 20. Qe3 {[%clk 0:01:37.5]} 20... Nd7 {[%clk 0:02:28.5]}
21. Qf2 {[%clk 0:01:28.7]} 21... h6 {[%clk 0:02:25.2]} 22. Be3 {[%clk
0:01:26.6]} 22... Bc6 {[%clk 0:02:19.6]} 23. Nd4 {[%clk 0:01:22.9]} 23... Ba8
{[%clk 0:02:18.5]} 24. Bf1 {[%clk 0:01:12.2]} 24... Nf6 {[%clk 0:02:17.1]} 25.
Qd2 {[%clk 0:01:11.5]} 25... Kh7 {[%clk 0:02:12.1]} 26. Bd3 {[%clk 0:01:09.3]}
26... d5 {[%clk 0:02:08.3]} 27. exd5 {[%clk 0:01:07.4]} 27... exd5 {[%clk
0:02:09.2]} 28. cxd5 {[%clk 0:01:01.5]} 28... Bxh2 {[%clk 0:02:08.2]} 29. Nce2
{[%clk 0:00:30.3]} 29... Nxd5 {[%clk 0:02:02.3]} 30. Bf2 {[%clk 0:00:24.9]}
30... Be5 {[%clk 0:01:54.8]} 31. Rxc8 {[%clk 0:00:20.6]} 31... Rxc8 {[%clk
0:01:52.3]} 32. f4 {[%clk 0:00:20.5]} 32... Nxf4 {[%clk 0:01:49.7]} 33. Nxf4
{[%clk 0:00:20]} 33... Bxf4 {[%clk 0:01:50.6]} 34. Qe2 {[%clk 0:00:19.7]} 34...
Re8 {[%clk 0:01:16]} 35. Qg4 {[%clk 0:00:18.6]} 35... Re5 {[%clk 0:01:15.3]} 36.
Nf5 {[%clk 0:00:17.3]} 36... Bg5 {[%clk 0:01:05.9]} 37. Bd4 {[%clk 0:00:16.6]}
37... b5 {[%clk 0:00:46.6]} 38. Bxe5 {[%clk 0:00:12]} 38... Qxe5 {[%clk
0:00:47.5]} 39. Qd4 {[%clk 0:00:10.6]} 39... Bf6 {[%clk 0:00:38.4]} 40. Qxe5
{[%clk 0:00:10.5]} 40... Bxe5 {[%clk 0:00:39.3]} 41. Ne7 {[%clk 0:00:09.8]}
41... h5 {[%clk 0:00:33.4]} 42. Nxg6 {[%clk 0:00:07.4]} 42... fxg6 {[%clk
0:00:34.3]} 43. Re1 {[%clk 0:00:07.4]} 43... Bf6 {[%clk 0:00:33.4]} 44. Re6
{[%clk 0:00:07.5]} 44... Bb7 {[%clk 0:00:32.6]} 45. Rb6 {[%clk 0:00:07.1]} 45...
Bc8 {[%clk 0:00:32.1]} 46. Rc6 {[%clk 0:00:07.2]} 46... Bb7 {[%clk 0:00:31.8]}
47. Rb6 {[%clk 0:00:07.5]} 47... Bc8 {[%clk 0:00:31.7]} 48. Rc6 {[%clk
0:00:07.6]} 48... Bb7 {[%clk 0:00:31.7]} 49. Rb6 {[%clk 0:00:08.2]} 1/2-1/2

[Event "*** Titled Tuesday Blitz"]
[Site "Chess.com"]
[Date "2020.04.07"]
[Round "3"]
[White "dusanacns"]
[Black "hermionegrangermagic"]
[Result "1-0"]
[WhiteElo "2739"]
[BlackElo "2461"]
[TimeControl "180+1"]
[EndTime "13:30:18 PDT"]
[Termination "dusanacns won by resignation"]

1. d4 {[%clk 0:03:00.9]} 1... Nf6 {[%clk 0:02:58.6]} 2. Nf3 {[%clk 0:03:00.9]}
2... d5 {[%clk 0:02:58.4]} 3. Bf4 {[%clk 0:03:00.4]} 3... c5 {[%clk 0:02:57.6]}
4. e3 {[%clk 0:03:00.8]} 4... Nc6 {[%clk 0:02:57]} 5. Nbd2 {[%clk 0:03:00.8]}
5... Bf5 {[%clk 0:02:54.5]} 6. dxc5 {[%clk 0:02:54.7]} 6... e6 {[%clk 0:02:54]}
7. Nb3 {[%clk 0:02:50.5]} 7... Bxc5 {[%clk 0:02:43.6]} 8. Nxc5 {[%clk
0:02:44.7]} 8... Qa5+ {[%clk 0:02:42.5]} 9. c3 {[%clk 0:02:44.3]} 9... Qxc5
{[%clk 0:02:41.5]} 10. Nd4 {[%clk 0:02:44.6]} 10... Nxd4 {[%clk 0:02:33.3]} 11.
exd4 {[%clk 0:02:44.1]} 11... Qc6 {[%clk 0:02:23]} 12. Be2 {[%clk 0:02:41.1]}
12... O-O {[%clk 0:02:22.3]} 13. O-O {[%clk 0:02:41.5]} 13... Qb6 {[%clk
0:02:17.4]} 14. Qb3 {[%clk 0:02:39.5]} 14... Rfc8 {[%clk 0:01:57.2]} 15. Qxb6
{[%clk 0:02:36.7]} 15... axb6 {[%clk 0:01:56.4]} 16. f3 {[%clk 0:02:33]} 16...
h6 {[%clk 0:01:29]} 17. g4 {[%clk 0:02:32.4]} 17... Bh7 {[%clk 0:01:25.4]} 18.
Kf2 {[%clk 0:02:31.9]} 18... Kf8 {[%clk 0:01:23.4]} 19. h4 {[%clk 0:02:32]}
19... Ke7 {[%clk 0:01:16.2]} 20. h5 {[%clk 0:02:28.5]} 20... Ne8 {[%clk
0:01:11.4]} 21. g5 {[%clk 0:02:26.2]} 21... hxg5 {[%clk 0:01:07.2]} 22. Bxg5+
{[%clk 0:02:26.4]} 22... f6 {[%clk 0:01:00.5]} 23. Bf4 {[%clk 0:02:26]} 23...
Nd6 {[%clk 0:00:42.7]} 24. Rg1 {[%clk 0:02:16.9]} 24... Nf5 {[%clk 0:00:42.7]}
25. Bd3 {[%clk 0:02:12.8]} 25... Kf7 {[%clk 0:00:42.8]} 26. Bb5 {[%clk
0:02:09.4]} 26... Ne7 {[%clk 0:00:31.5]} 27. a4 {[%clk 0:02:07.5]} 27... Bf5
{[%clk 0:00:27.5]} 28. Rg2 {[%clk 0:02:01.8]} 28... Rh8 {[%clk 0:00:22.9]} 29.
Rag1 {[%clk 0:02:00.5]} 29... g5 {[%clk 0:00:22.5]} 30. hxg6+ {[%clk 0:01:59.6]}
30... Nxg6 {[%clk 0:00:22.1]} 31. Bc7 {[%clk 0:02:00]} 31... Rag8 {[%clk
0:00:09.6]} 32. Bxb6 {[%clk 0:01:56.4]} 32... Rh3 {[%clk 0:00:06.3]} 33. Bc7
{[%clk 0:01:54.9]} 33... Ke7 {[%clk 0:00:03.3]} 34. Rh2 {[%clk 0:01:48.9]} 34...
Rxh2+ {[%clk 0:00:03]} 35. Bxh2 {[%clk 0:01:49.8]} 35... Rh8 {[%clk 0:00:03.5]}
36. Bg3 {[%clk 0:01:50.2]} 36... e5 {[%clk 0:00:03.2]} 37. a5 {[%clk 0:01:46.7]}
37... e4 {[%clk 0:00:03.3]} 38. Ra1 {[%clk 0:01:45.1]} 38... exf3 {[%clk
0:00:03.5]} 39. Kxf3 {[%clk 0:01:46]} 39... Be4+ {[%clk 0:00:03.7]} 40. Kf2
{[%clk 0:01:46.1]} 40... f5 {[%clk 0:00:04.3]} 41. Bc7 {[%clk 0:00:55.2]} 41...
f4 {[%clk 0:00:03.7]} 42. Rg1 {[%clk 0:00:55.7]} 42... Rh2+ {[%clk 0:00:03.1]}
43. Kf1 {[%clk 0:00:55.7]} 43... Rh6 {[%clk 0:00:01.3]} 44. b3 {[%clk
0:00:46.3]} 44... Nh4 {[%clk 0:00:01.3]} 45. Kf2 {[%clk 0:00:37.9]} 45... Nf5
{[%clk 0:00:01.2]} 46. Bxf4 {[%clk 0:00:37.2]} 46... Rf6 {[%clk 0:00:01.5]} 47.
Bg5 {[%clk 0:00:37.2]} 47... Nd6+ {[%clk 0:00:01.7]} 48. Bxf6+ {[%clk
0:00:36.4]} 48... Kxf6 {[%clk 0:00:02.6]} 49. Be2 {[%clk 0:00:36.7]} 49... Bc2
{[%clk 0:00:02.4]} 50. b4 {[%clk 0:00:36]} 50... Ba4 {[%clk 0:00:02.8]} 51. Bd3
{[%clk 0:00:35.5]} 51... Ne4+ {[%clk 0:00:02.1]} 52. Bxe4 {[%clk 0:00:35.3]}
52... dxe4 {[%clk 0:00:03]} 53. c4 {[%clk 0:00:35.4]} 53... Bb3 {[%clk
0:00:02.6]} 54. Rc1 {[%clk 0:00:35]} 54... Kf5 {[%clk 0:00:02.3]} 55. Ke3 {[%clk
0:00:35.3]} 55... Ba4 {[%clk 0:00:01.8]} 56. b5 {[%clk 0:00:35.4]} 56... Bb3
{[%clk 0:00:02.1]} 57. a6 {[%clk 0:00:35.6]} 57... bxa6 {[%clk 0:00:02.1]} 58.
bxa6 {[%clk 0:00:36.5]} 58... Ba4 {[%clk 0:00:02.3]} 59. d5 {[%clk 0:00:36]}
59... Bc6 {[%clk 0:00:03.2]} 60. dxc6 {[%clk 0:00:35.9]} 1-0

[Event "*** Titled Tuesday Blitz"]
[Site "Chess.com"]
[Date "2020.04.07"]
[Round "3"]
[White "harvsp123"]
[Black "Man-Chuk"]
[Result "1/2-1/2"]
[WhiteElo "2532"]
[BlackElo "2769"]
[TimeControl "180+1"]
[EndTime "13:30:19 PDT"]
[Termination "Game drawn by repetition"]

1. e4 {[%clk 0:02:58.1]} 1... e5 {[%clk 0:02:58.7]} 2. Nf3 {[%clk 0:02:57.8]}
2... Nc6 {[%clk 0:02:59.2]} 3. Bb5 {[%clk 0:02:58.2]} 3... Nf6 {[%clk
0:02:57.4]} 4. O-O {[%clk 0:02:57.4]} 4... d6 {[%clk 0:02:52.5]} 5. Re1 {[%clk
0:02:54.9]} 5... Bd7 {[%clk 0:02:49.5]} 6. c3 {[%clk 0:02:52.4]} 6... g6 {[%clk
0:02:49.1]} 7. d4 {[%clk 0:02:52.2]} 7... Bg7 {[%clk 0:02:45.8]} 8. h3 {[%clk
0:02:46.3]} 8... O-O {[%clk 0:02:41.6]} 9. Ba4 {[%clk 0:02:46.5]} 9... Re8
{[%clk 0:02:38.7]} 10. Nbd2 {[%clk 0:02:42.6]} 10... Rb8 {[%clk 0:02:26.1]} 11.
Bc2 {[%clk 0:02:23.3]} 11... b5 {[%clk 0:02:25.8]} 12. a4 {[%clk 0:02:20]} 12...
b4 {[%clk 0:02:26.1]} 13. Nc4 {[%clk 0:01:52.7]} 13... bxc3 {[%clk 0:02:20]} 14.
bxc3 {[%clk 0:01:53.6]} 14... exd4 {[%clk 0:02:20.4]} 15. cxd4 {[%clk
0:01:54.2]} 15... Nb4 {[%clk 0:02:20.7]} 16. Bg5 {[%clk 0:01:30.4]} 16... h6
{[%clk 0:02:16]} 17. Bxf6 {[%clk 0:01:13.6]} 17... Qxf6 {[%clk 0:02:08.8]} 18.
Bb3 {[%clk 0:01:12.8]} 18... Be6 {[%clk 0:01:25.6]} 19. Rb1 {[%clk 0:00:53.7]}
19... d5 {[%clk 0:01:11.7]} 20. e5 {[%clk 0:00:50.2]} 20... Qe7 {[%clk
0:01:06.7]} 21. Ne3 {[%clk 0:00:49.4]} 21... a5 {[%clk 0:00:57.8]} 22. Rc1
{[%clk 0:00:48.2]} 22... c6 {[%clk 0:00:47.2]} 23. Qd2 {[%clk 0:00:43.1]} 23...
h5 {[%clk 0:00:38.9]} 24. Rc5 {[%clk 0:00:35.3]} 24... Qd8 {[%clk 0:00:38.7]}
25. h4 {[%clk 0:00:24.6]} 25... Bh6 {[%clk 0:00:28.7]} 26. Qc3 {[%clk
0:00:19.2]} 26... Bg4 {[%clk 0:00:26.6]} 27. Ng5 {[%clk 0:00:11.5]} 27... Bxg5
{[%clk 0:00:26.5]} 28. hxg5 {[%clk 0:00:12.4]} 28... Qxg5 {[%clk 0:00:27.4]} 29.
Rxa5 {[%clk 0:00:12.5]} 29... h4 {[%clk 0:00:25.7]} 30. Nxg4 {[%clk 0:00:11.1]}
30... Qxg4 {[%clk 0:00:26.6]} 31. Ra7 {[%clk 0:00:10.6]} 31... Rf8 {[%clk
0:00:15.6]} 32. Bd1 {[%clk 0:00:11]} 32... Qg5 {[%clk 0:00:15.2]} 33. Re3 {[%clk
0:00:11.2]} 33... Na2 {[%clk 0:00:11.3]} 34. Qd2 {[%clk 0:00:10.5]} 34... Rb1
{[%clk 0:00:10.6]} 35. e6 {[%clk 0:00:06.8]} 35... fxe6 {[%clk 0:00:10]} 36. Qc2
{[%clk 0:00:06.9]} 36... Ra1 {[%clk 0:00:09.1]} 37. Rxe6 {[%clk 0:00:06.1]}
37... Qf5 {[%clk 0:00:03]} 38. Rxg6+ {[%clk 0:00:06]} 38... Kh8 {[%clk
0:00:03.2]} 39. Rh6+ {[%clk 0:00:05.4]} 39... Kg8 {[%clk 0:00:03.7]} 40. Rg6+
{[%clk 0:00:05.8]} 40... Kh8 {[%clk 0:00:04.2]} 41. Rh6+ {[%clk 0:00:03.1]}
41... Kg8 {[%clk 0:00:04.2]} 42. Rg6+ {[%clk 0:00:03.5]} 1/2-1/2

[Event "*** Titled Tuesday Blitz"]
[Site "Chess.com"]
[Date "2020.04.07"]
[Round "3"]
[White "lucasran"]
[Black "Kumi29"]
[Result "1-0"]
[WhiteElo "2706"]
[BlackElo "2438"]
[TimeControl "180+1"]
[EndTime "13:30:19 PDT"]
[Termination "lucasran won by resignation"]

1. Nf3 {[%clk 0:03:00.9]} 1... b6 {[%clk 0:02:56.5]} 2. g3 {[%clk 0:03:00.4]}
2... Bb7 {[%clk 0:02:55.9]} 3. Bg2 {[%clk 0:03:00.5]} 3... e6 {[%clk 0:02:56.3]}
4. O-O {[%clk 0:03:00.6]} 4... f5 {[%clk 0:02:56.2]} 5. c4 {[%clk 0:03:00.3]}
5... Nf6 {[%clk 0:02:56.5]} 6. Nc3 {[%clk 0:02:59.5]} 6... Be7 {[%clk 0:02:57]}
7. d4 {[%clk 0:02:58]} 7... O-O {[%clk 0:02:57.2]} 8. b3 {[%clk 0:02:50.5]} 8...
Ne4 {[%clk 0:02:57.2]} 9. Bb2 {[%clk 0:02:49.9]} 9... d6 {[%clk 0:02:54.3]} 10.
Qc2 {[%clk 0:02:37.5]} 10... Nxc3 {[%clk 0:02:54]} 11. Bxc3 {[%clk 0:02:38.4]}
11... Nd7 {[%clk 0:02:54.2]} 12. Rad1 {[%clk 0:02:23.4]} 12... Qe8 {[%clk
0:02:43]} 13. Ne1 {[%clk 0:02:15.4]} 13... Bxg2 {[%clk 0:02:42.2]} 14. Nxg2
{[%clk 0:02:16.3]} 14... e5 {[%clk 0:02:26.1]} 15. f4 {[%clk 0:01:44.1]} 15...
exd4 {[%clk 0:02:19]} 16. Bxd4 {[%clk 0:01:43.5]} 16... Bf6 {[%clk 0:02:19.5]}
17. Rfe1 {[%clk 0:01:18.4]} 17... Bxd4+ {[%clk 0:02:15.8]} 18. Rxd4 {[%clk
0:01:19.3]} 18... Nc5 {[%clk 0:02:16.3]} 19. e3 {[%clk 0:01:13.9]} 19... Ne4
{[%clk 0:02:11.8]} 20. Nh4 {[%clk 0:01:12.4]} 20... Qe6 {[%clk 0:02:08.4]} 21.
Nxf5 {[%clk 0:01:03.3]} 21... Rae8 {[%clk 0:01:47.9]} 22. Nh4 {[%clk 0:00:54.5]}
22... a5 {[%clk 0:01:24.7]} 23. Nf3 {[%clk 0:00:48]} 23... g5 {[%clk 0:00:56]}
24. Qg2 {[%clk 0:00:44.7]} 24... g4 {[%clk 0:00:54.1]} 25. Nd2 {[%clk
0:00:41.5]} 25... Nxd2 {[%clk 0:00:46.5]} 26. Qxd2 {[%clk 0:00:41.1]} 26... h5
{[%clk 0:00:43.6]} 27. Rd5 {[%clk 0:00:40.5]} 27... h4 {[%clk 0:00:40.3]} 28.
Qd4 {[%clk 0:00:40.3]} 28... Rf7 {[%clk 0:00:36.2]} 29. Rg5+ {[%clk 0:00:39.4]}
29... Kf8 {[%clk 0:00:34.7]} 30. Qh8+ {[%clk 0:00:36.5]} 30... Ke7 {[%clk
0:00:34.6]} 31. Qxh4 {[%clk 0:00:36.6]} 31... Kd7 {[%clk 0:00:33.1]} 32. Qxg4
{[%clk 0:00:36.3]} 32... Qxg4 {[%clk 0:00:30.7]} 33. Rxg4 {[%clk 0:00:37.2]}
33... c6 {[%clk 0:00:31.2]} 34. Kf2 {[%clk 0:00:35.6]} 34... d5 {[%clk
0:00:31.4]} 35. cxd5 {[%clk 0:00:34.9]} 35... cxd5 {[%clk 0:00:32.3]} 36. Rg5
{[%clk 0:00:35.4]} 36... Kc6 {[%clk 0:00:32.4]} 37. Rc1+ {[%clk 0:00:35.3]}
37... Kd6 {[%clk 0:00:32.4]} 38. Rd1 {[%clk 0:00:35.4]} 38... Rfe7 {[%clk
0:00:31.2]} 39. Rgxd5+ {[%clk 0:00:34.9]} 39... Kc6 {[%clk 0:00:31.8]} 40. R5d3
{[%clk 0:00:34.5]} 40... Kb5 {[%clk 0:00:31.2]} 41. a3 {[%clk 0:00:32.8]} 41...
a4 {[%clk 0:00:31.5]} 42. bxa4+ {[%clk 0:00:29.8]} 42... Kxa4 {[%clk 0:00:32.4]}
43. Rb1 {[%clk 0:00:28.3]} 43... b5 {[%clk 0:00:31.7]} 44. Rb4+ {[%clk
0:00:27.7]} 44... Ka5 {[%clk 0:00:32.2]} 45. Rdb3 {[%clk 0:00:27.2]} 45... Rc8
{[%clk 0:00:29.2]} 46. Rxb5+ {[%clk 0:00:25.6]} 46... Ka4 {[%clk 0:00:29.7]} 47.
R5b4+ {[%clk 0:00:25.2]} 47... Ka5 {[%clk 0:00:29.7]} 48. h4 {[%clk 0:00:23]}
48... Re6 {[%clk 0:00:28.9]} 49. h5 {[%clk 0:00:22.3]} 49... Rc2+ {[%clk
0:00:28]} 50. Kf3 {[%clk 0:00:22.3]} 50... Rh2 {[%clk 0:00:28.6]} 51. Re4 {[%clk
0:00:18.6]} 51... Rc2 {[%clk 0:00:26]} 52. Rxe6 {[%clk 0:00:17.1]} 52... Rc4
{[%clk 0:00:22.4]} 53. Rb8 {[%clk 0:00:16.6]} 53... Rb4 {[%clk 0:00:22.3]} 54.
axb4+ {[%clk 0:00:15.5]} 1-0